[Event "Early-Titled-Tuesday-Blitz-October-24-2023"]
[Site "Chess.com"]
[Date "2023.10.24"]
[Round "7"]
[White "DavidLana1987"]
[Black "Witik"]
[Result "0-1"]
[WhiteElo "2581"]
[BlackElo "2799"]
[TimeControl "180+1"]
[EndTime "9:14:36 PDT"]
[Termination "Witik won by checkmate"]

1. e4 {[%clk 0:01:37.4]} 1... c6 {[%clk 0:02:59]} 2. Nf3 {[%clk 0:01:37.7]} 2...
d5 {[%clk 0:02:59.5]} 3. exd5 {[%clk 0:01:38.6]} 3... cxd5 {[%clk 0:02:59.9]} 4.
d4 {[%clk 0:01:39.5]} 4... Nc6 {[%clk 0:02:59.1]} 5. c3 {[%clk 0:01:39.4]} 5...
Bg4 {[%clk 0:02:57.3]} 6. Bb5 {[%clk 0:01:39.9]} 6... Qc7 {[%clk 0:02:57.2]} 7.
Nbd2 {[%clk 0:01:40.1]} 7... e6 {[%clk 0:02:57.4]} 8. Qa4 {[%clk 0:01:40.2]}
8... Bd6 {[%clk 0:02:53.8]} 9. O-O {[%clk 0:01:39.5]} 9... Ne7 {[%clk
0:02:39.9]} 10. Ne5 {[%clk 0:01:39.9]} 10... Bh5 {[%clk 0:02:37]} 11. Re1 {[%clk
0:01:39]} 11... O-O {[%clk 0:02:36.2]} 12. Nf1 {[%clk 0:01:38.2]} 12... Nxe5
{[%clk 0:02:32.8]} 13. dxe5 {[%clk 0:01:33.7]} 13... Bxe5 {[%clk 0:02:33.3]} 14.
Bg5 {[%clk 0:01:30.8]} 14... Bd6 {[%clk 0:02:18.3]} 15. Bd3 {[%clk 0:01:22.9]}
15... Bg6 {[%clk 0:02:16.3]} 16. Bxg6 {[%clk 0:01:21.3]} 16... Nxg6 {[%clk
0:02:15.9]} 17. Rad1 {[%clk 0:01:21.6]} 17... a6 {[%clk 0:02:08.4]} 18. Qg4
{[%clk 0:01:19.8]} 18... Rfe8 {[%clk 0:01:59.6]} 19. h4 {[%clk 0:01:18.5]} 19...
Ne5 {[%clk 0:01:59.9]} 20. Qh5 {[%clk 0:01:17]} 20... Nd7 {[%clk 0:01:51.1]} 21.
Ne3 {[%clk 0:01:14.1]} 21... Bh2+ {[%clk 0:01:42.5]} 22. Kh1 {[%clk 0:01:13.7]}
22... Bf4 {[%clk 0:01:43.1]} 23. Ng4 {[%clk 0:01:12.2]} 23... f6 {[%clk
0:01:23.7]} 24. Bxf4 {[%clk 0:01:06.9]} 24... Qxf4 {[%clk 0:01:24.6]} 25. g3
{[%clk 0:00:59.1]} 25... Qd6 {[%clk 0:01:10.1]} 26. Ne3 {[%clk 0:00:57.9]} 26...
Nb6 {[%clk 0:00:34.8]} 27. Kg2 {[%clk 0:00:57.4]} 27... Qc6 {[%clk 0:00:34.1]}
28. Kh2 {[%clk 0:00:56.8]} 28... Re7 {[%clk 0:00:29.7]} 29. Nf5 {[%clk
0:00:49.7]} 29... Ree8 {[%clk 0:00:23.7]} 30. Nd4 {[%clk 0:00:49.9]} 30... Qd7
{[%clk 0:00:23.7]} 31. Re2 {[%clk 0:00:48.8]} 31... e5 {[%clk 0:00:23.4]} 32.
Nf3 {[%clk 0:00:45.5]} 32... Qf7 {[%clk 0:00:22]} 33. Qg4 {[%clk 0:00:45.2]}
33... Rad8 {[%clk 0:00:22.3]} 34. Qb4 {[%clk 0:00:45.3]} 34... Nc4 {[%clk
0:00:15.8]} 35. b3 {[%clk 0:00:45.2]} 35... Nd6 {[%clk 0:00:14.6]} 36. Rxd5
{[%clk 0:00:44.5]} 36... Qxd5 {[%clk 0:00:14.4]} 37. Rd2 {[%clk 0:00:44.6]}
37... Qxf3 {[%clk 0:00:13.1]} 38. Rxd6 {[%clk 0:00:45.3]} 38... Qxf2+ {[%clk
0:00:12.9]} 39. Kh3 {[%clk 0:00:45.5]} 39... Qf1+ {[%clk 0:00:10.3]} 40. Kg4
{[%clk 0:00:45.7]} 40... h5+ {[%clk 0:00:09.6]} 41. Kxh5 {[%clk 0:00:45.7]}
41... Qf5# {[%clk 0:00:09.6]} 0-1

[Event "Early-Titled-Tuesday-Blitz-October-24-2023"]
[Site "Chess.com"]
[Date "2023.10.24"]
[Round "7"]
[White "GlacierGambit"]
[Black "deepfear"]
[Result "1-0"]
[WhiteElo "2115"]
[BlackElo "1778"]
[TimeControl "180+1"]
[EndTime "9:14:38 PDT"]
[Termination "GlacierGambit won on time"]

1. e4 {[%clk 0:03:00.7]} 1... c5 {[%clk 0:02:55.9]} 2. Nf3 {[%clk 0:03:00.2]}
2... g6 {[%clk 0:02:55.8]} 3. c3 {[%clk 0:02:59.8]} 3... Bg7 {[%clk 0:02:53.6]}
4. d4 {[%clk 0:03:00.7]} 4... cxd4 {[%clk 0:02:50.9]} 5. cxd4 {[%clk 0:03:01.6]}
5... d6 {[%clk 0:02:48.2]} 6. Nc3 {[%clk 0:03:01.5]} 6... Nf6 {[%clk 0:02:46.5]}
7. Bb5+ {[%clk 0:02:52.4]} 7... Bd7 {[%clk 0:02:44.4]} 8. Bxd7+ {[%clk
0:02:50.9]} 8... Nbxd7 {[%clk 0:02:45.3]} 9. O-O {[%clk 0:02:51.2]} 9... O-O
{[%clk 0:02:44.7]} 10. Qe2 {[%clk 0:02:50.2]} 10... a6 {[%clk 0:02:32.7]} 11.
Rd1 {[%clk 0:02:35.8]} 11... e6 {[%clk 0:01:47.3]} 12. Bg5 {[%clk 0:02:30]}
12... h6 {[%clk 0:01:45.2]} 13. Bh4 {[%clk 0:02:20.6]} 13... Qb6 {[%clk
0:01:27.1]} 14. e5 {[%clk 0:02:12]} 14... Nd5 {[%clk 0:01:09.4]} 15. Nxd5 {[%clk
0:02:07.8]} 15... exd5 {[%clk 0:01:10.3]} 16. e6 {[%clk 0:02:07.2]} 16... Nf6
{[%clk 0:00:57.9]} 17. Rac1 {[%clk 0:01:42.7]} 17... Ne4 {[%clk 0:00:52.6]} 18.
Nd2 {[%clk 0:00:35.7]} 18... Qxd4 {[%clk 0:00:29.9]} 19. Nf3 {[%clk 0:00:23]}
19... Qb6 {[%clk 0:00:25.9]} 20. Rxd5 {[%clk 0:00:21.8]} 20... Nf6 {[%clk
0:00:19.8]} 21. Bxf6 {[%clk 0:00:19.7]} 21... Bxf6 {[%clk 0:00:19.7]} 22. Rcd1
{[%clk 0:00:19.6]} 22... Qxb2 {[%clk 0:00:03.3]} 23. Qxb2 {[%clk 0:00:17.1]}
23... Bxb2 {[%clk 0:00:02.7]} 24. Rxd6 {[%clk 0:00:14.4]} 24... fxe6 {[%clk
0:00:02.2]} 25. Rxe6 {[%clk 0:00:15.3]} 1-0

[Event "Early-Titled-Tuesday-Blitz-October-24-2023"]
[Site "Chess.com"]
[Date "2023.10.24"]
[Round "7"]
[White "Maect19"]
[Black "noblerone"]
[Result "0-1"]
[WhiteElo "2287"]
[BlackElo "2521"]
[TimeControl "180+1"]
[EndTime "9:14:40 PDT"]
[Termination "noblerone won by checkmate"]

1. d4 {[%clk 0:03:00.9]} 1... d5 {[%clk 0:03:00]} 2. Nf3 {[%clk 0:03:00.8]} 2...
Nf6 {[%clk 0:02:59.9]} 3. e3 {[%clk 0:03:00.5]} 3... Bg4 {[%clk 0:02:58.4]} 4.
Nbd2 {[%clk 0:02:55.9]} 4... e6 {[%clk 0:02:57.7]} 5. Bd3 {[%clk 0:02:54.5]}
5... c6 {[%clk 0:02:57.6]} 6. b3 {[%clk 0:02:52.8]} 6... Nbd7 {[%clk 0:02:57.4]}
7. Bb2 {[%clk 0:02:52.7]} 7... Bd6 {[%clk 0:02:55.9]} 8. h3 {[%clk 0:02:52.6]}
8... Bh5 {[%clk 0:02:54.6]} 9. O-O {[%clk 0:02:50]} 9... O-O {[%clk 0:02:53.8]}
10. c4 {[%clk 0:02:46.4]} 10... a5 {[%clk 0:02:52.6]} 11. a4 {[%clk 0:02:44.1]}
11... Re8 {[%clk 0:02:49.5]} 12. e4 {[%clk 0:02:41.2]} 12... dxe4 {[%clk
0:02:48.4]} 13. Nxe4 {[%clk 0:02:41.8]} 13... Nxe4 {[%clk 0:02:48.6]} 14. Bxe4
{[%clk 0:02:42]} 14... Nf6 {[%clk 0:02:48.8]} 15. Bc2 {[%clk 0:02:41.4]} 15...
Bc7 {[%clk 0:02:45.6]} 16. Qd3 {[%clk 0:02:38.8]} 16... Bg6 {[%clk 0:02:43.9]}
17. Qe2 {[%clk 0:02:38.3]} 17... Bxc2 {[%clk 0:02:42.2]} 18. Qxc2 {[%clk
0:02:39.2]} 18... Nh5 {[%clk 0:02:33.9]} 19. Qe4 {[%clk 0:02:20]} 19... Qf6
{[%clk 0:02:19.8]} 20. Ne5 {[%clk 0:02:07.3]} 20... Qf4 {[%clk 0:02:14.5]} 21.
Qxf4 {[%clk 0:01:56]} 21... Nxf4 {[%clk 0:02:15.4]} 22. Rad1 {[%clk 0:01:44.5]}
22... Rad8 {[%clk 0:02:09.7]} 23. Rfe1 {[%clk 0:01:29.7]} 23... f6 {[%clk
0:02:02.2]} 24. Nd3 {[%clk 0:01:17.4]} 24... Kf7 {[%clk 0:01:47.7]} 25. Nxf4
{[%clk 0:01:08.5]} 25... Bxf4 {[%clk 0:01:48.6]} 26. g3 {[%clk 0:01:06.7]} 26...
Bc7 {[%clk 0:01:48.4]} 27. Kg2 {[%clk 0:01:05]} 27... Rd7 {[%clk 0:01:46.6]} 28.
Rd2 {[%clk 0:00:59.1]} 28... Bb6 {[%clk 0:01:43.8]} 29. c5 {[%clk 0:00:28.6]}
29... Bc7 {[%clk 0:01:41.9]} 30. Rde2 {[%clk 0:00:26.9]} 30... Rde7 {[%clk
0:01:04.3]} 31. Bc3 {[%clk 0:00:25.5]} 31... f5 {[%clk 0:00:54.1]} 32. f4 {[%clk
0:00:19.1]} 32... h6 {[%clk 0:00:54.1]} 33. Kf3 {[%clk 0:00:19.1]} 33... g5
{[%clk 0:00:53.6]} 34. Bd2 {[%clk 0:00:18.2]} 34... Kf6 {[%clk 0:00:51.9]} 35.
g4 {[%clk 0:00:15.6]} 35... gxf4 {[%clk 0:00:48.7]} 36. Bxf4 {[%clk 0:00:14.7]}
36... Bxf4 {[%clk 0:00:48.4]} 37. Kxf4 {[%clk 0:00:15.6]} 37... fxg4 {[%clk
0:00:49.2]} 38. Kxg4 {[%clk 0:00:15.5]} 38... Rd7 {[%clk 0:00:47.1]} 39. Re4
{[%clk 0:00:15]} 39... Rg8+ {[%clk 0:00:45.9]} 40. Kh5 {[%clk 0:00:12.3]} 40...
Rg5+ {[%clk 0:00:41.6]} 41. Kxh6 {[%clk 0:00:11.6]} 41... Rg6+ {[%clk 0:00:41]}
42. Kh5 {[%clk 0:00:10.5]} 42... Rh7# {[%clk 0:00:41.7]} 0-1

[Event "Early-Titled-Tuesday-Blitz-October-24-2023"]
[Site "Chess.com"]
[Date "2023.10.24"]
[Round "7"]
[White "dawid498"]
[Black "Sjakkerntobi"]
[Result "1/2-1/2"]
[WhiteElo "2671"]
[BlackElo "2490"]
[TimeControl "180+1"]
[EndTime "9:14:46 PDT"]
[Termination "Game drawn by agreement"]

1. a3 {[%clk 0:03:00.9]} 1... e5 {[%clk 0:02:59.8]} 2. c4 {[%clk 0:03:01]} 2...
Nf6 {[%clk 0:03:00]} 3. d3 {[%clk 0:02:59.8]} 3... c6 {[%clk 0:03:00.4]} 4. Nf3
{[%clk 0:02:59]} 4... d6 {[%clk 0:03:00.8]} 5. g3 {[%clk 0:02:51]} 5... Be7
{[%clk 0:03:01]} 6. Bg2 {[%clk 0:02:51.7]} 6... O-O {[%clk 0:03:01.9]} 7. O-O
{[%clk 0:02:52.4]} 7... h6 {[%clk 0:03:00.7]} 8. Nc3 {[%clk 0:02:51.6]} 8... Be6
{[%clk 0:03:01]} 9. b4 {[%clk 0:02:22.9]} 9... Nbd7 {[%clk 0:03:00.2]} 10. Bb2
{[%clk 0:02:22.9]} 10... Re8 {[%clk 0:02:57.3]} 11. Rc1 {[%clk 0:02:21.9]} 11...
a6 {[%clk 0:02:49.8]} 12. e4 {[%clk 0:02:19.7]} 12... Bg4 {[%clk 0:02:39.2]} 13.
h3 {[%clk 0:02:17.5]} 13... Bxf3 {[%clk 0:02:39.6]} 14. Qxf3 {[%clk 0:02:17.1]}
14... c5 {[%clk 0:02:40]} 15. Qe2 {[%clk 0:01:32.3]} 15... Nb8 {[%clk
0:02:15.2]} 16. f4 {[%clk 0:01:03.1]} 16... Nc6 {[%clk 0:02:13.7]} 17. f5 {[%clk
0:00:58.1]} 17... Nd4 {[%clk 0:02:13.8]} 18. Qf2 {[%clk 0:00:51.9]} 18... Nh5
{[%clk 0:02:09.8]} 19. Bf3 {[%clk 0:00:48.5]} 19... Nf6 {[%clk 0:02:03.3]} 20.
h4 {[%clk 0:00:47.5]} 20... Nh7 {[%clk 0:02:00.5]} 21. Nd5 {[%clk 0:00:42.6]}
21... b5 {[%clk 0:01:47.2]} 22. Kh2 {[%clk 0:00:33]} 22... Nf6 {[%clk
0:01:43.8]} 23. Nxe7+ {[%clk 0:00:31.5]} 23... Qxe7 {[%clk 0:01:43.6]} 24. Rg1
{[%clk 0:00:20.3]} 24... Nxf3+ {[%clk 0:01:33.7]} 25. Qxf3 {[%clk 0:00:21.2]}
25... h5 {[%clk 0:01:34.6]} 26. Rc2 {[%clk 0:00:17.1]} 26... Ng4+ {[%clk
0:01:33.8]} 27. Kh3 {[%clk 0:00:15.9]} 27... cxb4 {[%clk 0:01:29.9]} 28. axb4
{[%clk 0:00:16.4]} 28... bxc4 {[%clk 0:01:30.4]} 29. Rxc4 {[%clk 0:00:16.1]}
29... Rec8 {[%clk 0:01:25.4]} 30. Rgc1 {[%clk 0:00:16.2]} 30... Qd7 {[%clk
0:01:25.5]} 31. Qe2 {[%clk 0:00:12.1]} 31... Rxc4 {[%clk 0:01:25.2]} 32. Rxc4
{[%clk 0:00:11.9]} 32... Rc8 {[%clk 0:01:25]} 33. Qc2 {[%clk 0:00:11.4]} 33...
Rxc4 {[%clk 0:01:23.8]} 34. Qxc4 {[%clk 0:00:12.3]} 34... Qb5 {[%clk 0:01:20.5]}
35. Qxb5 {[%clk 0:00:11.2]} 35... axb5 {[%clk 0:01:21.4]} 36. Kg2 {[%clk
0:00:10.5]} 36... Kf8 {[%clk 0:01:20.7]} 37. Kf3 {[%clk 0:00:10.6]} 37... Ke7
{[%clk 0:01:21.4]} 38. d4 {[%clk 0:00:11]} 38... f6 {[%clk 0:01:21.6]} 39. Ke2
{[%clk 0:00:09.1]} 39... Kd7 {[%clk 0:01:19.3]} 40. d5 {[%clk 0:00:08.5]} 40...
Kc7 {[%clk 0:01:16.9]} 41. Bc1 {[%clk 0:00:09.1]} 41... Kb7 {[%clk 0:01:16.4]}
42. Bd2 {[%clk 0:00:08.5]} 42... Kc7 {[%clk 0:01:15.6]} 43. Be1 {[%clk
0:00:08.4]} 43... Kb7 {[%clk 0:01:13.8]} 44. Bf2 {[%clk 0:00:08.8]} 44... Kc7
{[%clk 0:00:57.8]} 45. Ba7 {[%clk 0:00:08.4]} 45... Kb7 {[%clk 0:00:57.8]} 46.
Be3 {[%clk 0:00:08.8]} 46... Kc7 {[%clk 0:00:57.5]} 47. Bf2 {[%clk 0:00:09.1]}
47... Kb7 {[%clk 0:00:58]} 48. Bg1 {[%clk 0:00:09.8]} 48... Kc7 {[%clk
0:00:54.3]} 49. Be3 {[%clk 0:00:10]} 49... Kb7 {[%clk 0:00:54.6]} 50. Bd2 {[%clk
0:00:10.5]} 50... Kc7 {[%clk 0:00:53.7]} 1/2-1/2

[Event "Early-Titled-Tuesday-Blitz-October-24-2023"]
[Site "Chess.com"]
[Date "2023.10.24"]
[Round "7"]
[White "jaskol95"]
[Black "SlippperyWhenWet"]
[Result "1-0"]
[WhiteElo "2558"]
[BlackElo "2355"]
[TimeControl "180+1"]
[EndTime "9:14:46 PDT"]
[Termination "jaskol95 won by checkmate"]

1. d4 {[%clk 0:03:00.9]} 1... a6 {[%clk 0:03:00.9]} 2. e4 {[%clk 0:02:57.8]}
2... e6 {[%clk 0:03:01.4]} 3. Nc3 {[%clk 0:02:55.4]} 3... d5 {[%clk 0:03:01.3]}
4. Nf3 {[%clk 0:02:50.2]} 4... dxe4 {[%clk 0:02:58.7]} 5. Nxe4 {[%clk
0:02:50.3]} 5... Nf6 {[%clk 0:02:59.3]} 6. Nxf6+ {[%clk 0:02:50.8]} 6... gxf6
{[%clk 0:02:54.4]} 7. Bd3 {[%clk 0:02:50.6]} 7... Be7 {[%clk 0:02:52.2]} 8. Bh6
{[%clk 0:02:47.3]} 8... Bf8 {[%clk 0:02:48.1]} 9. Bf4 {[%clk 0:02:45.4]} 9...
Bd6 {[%clk 0:02:47.4]} 10. Qd2 {[%clk 0:02:44]} 10... Nd7 {[%clk 0:02:41.3]} 11.
O-O-O {[%clk 0:02:36.1]} 11... b5 {[%clk 0:02:10.1]} 12. Bxd6 {[%clk 0:01:52]}
12... cxd6 {[%clk 0:02:11]} 13. d5 {[%clk 0:01:52.7]} 13... Ne5 {[%clk
0:01:58.3]} 14. dxe6 {[%clk 0:01:47.1]} 14... fxe6 {[%clk 0:01:57.2]} 15. Nxe5
{[%clk 0:01:43.6]} 15... fxe5 {[%clk 0:01:53.4]} 16. Qh6 {[%clk 0:01:39.5]}
16... Qe7 {[%clk 0:01:49.1]} 17. Bg6+ {[%clk 0:01:28.1]} 17... Kd8 {[%clk
0:01:45]} 18. Be4 {[%clk 0:01:28.3]} 18... Rb8 {[%clk 0:01:39.4]} 19. Rxd6+
{[%clk 0:01:22.6]} 19... Qxd6 {[%clk 0:01:38.9]} 20. Qf6+ {[%clk 0:01:19.8]}
20... Kc7 {[%clk 0:01:33.7]} 21. Qxh8 {[%clk 0:01:19.3]} 21... Bb7 {[%clk
0:01:28.9]} 22. Qxh7+ {[%clk 0:01:18.6]} 22... Kb6 {[%clk 0:01:28.6]} 23. Rd1
{[%clk 0:01:12]} 23... Qc5 {[%clk 0:01:21.5]} 24. Bxb7 {[%clk 0:00:50.1]} 24...
Rxb7 {[%clk 0:01:21.2]} 25. Rd7 {[%clk 0:00:48.3]} 25... Rxd7 {[%clk 0:01:17.4]}
26. Qxd7 {[%clk 0:00:47.9]} 26... Qxf2 {[%clk 0:01:14.5]} 27. Qxe6+ {[%clk
0:00:47.9]} 27... Ka5 {[%clk 0:01:14.1]} 28. Qg4 {[%clk 0:00:22.7]} 28... Qe3+
{[%clk 0:01:03]} 29. Kd1 {[%clk 0:00:22.8]} 29... e4 {[%clk 0:01:00]} 30. Qe2
{[%clk 0:00:18.1]} 30... Qc5 {[%clk 0:00:49.2]} 31. Qxe4 {[%clk 0:00:15.8]}
31... b4 {[%clk 0:00:48.7]} 32. g4 {[%clk 0:00:11.1]} 32... Ka4 {[%clk
0:00:47.9]} 33. Qe8+ {[%clk 0:00:10.7]} 33... Ka5 {[%clk 0:00:46.8]} 34. Qd8+
{[%clk 0:00:10.5]} 34... Ka4 {[%clk 0:00:47.1]} 35. Qd7+ {[%clk 0:00:10.1]}
35... Ka5 {[%clk 0:00:43.6]} 36. Qf5 {[%clk 0:00:10.4]} 36... Qxf5 {[%clk
0:00:41.7]} 37. gxf5 {[%clk 0:00:11.3]} 37... Ka4 {[%clk 0:00:42.5]} 38. f6
{[%clk 0:00:11.6]} 38... a5 {[%clk 0:00:43.4]} 39. f7 {[%clk 0:00:11.8]} 39...
Kb5 {[%clk 0:00:39.8]} 40. f8=Q {[%clk 0:00:10.5]} 40... b3 {[%clk 0:00:40.6]}
41. axb3 {[%clk 0:00:10.4]} 41... Ka6 {[%clk 0:00:40.3]} 42. Qb8 {[%clk
0:00:09.4]} 42... a4 {[%clk 0:00:38.6]} 43. bxa4 {[%clk 0:00:10.1]} 43... Ka5
{[%clk 0:00:38.2]} 44. Qb5# {[%clk 0:00:11]} 1-0

[Event "Early-Titled-Tuesday-Blitz-October-24-2023"]
[Site "Chess.com"]
[Date "2023.10.24"]
[Round "7"]
[White "GMSrinath"]
[Black "AlexPapasimakopoulos"]
[Result "0-1"]
[WhiteElo "2822"]
[BlackElo "2693"]
[TimeControl "180+1"]
[EndTime "9:14:47 PDT"]
[Termination "AlexPapasimakopoulos won by resignation"]

1. Nf3 {[%clk 0:03:00.9]} 1... d5 {[%clk 0:02:56.6]} 2. c4 {[%clk 0:03:01.3]}
2... e6 {[%clk 0:02:55.4]} 3. e3 {[%clk 0:03:01.8]} 3... Nf6 {[%clk 0:02:55.1]}
4. Nc3 {[%clk 0:03:01.3]} 4... Be7 {[%clk 0:02:54.2]} 5. b3 {[%clk 0:03:01.9]}
5... b6 {[%clk 0:02:51]} 6. Bb2 {[%clk 0:03:02.5]} 6... Bb7 {[%clk 0:02:43.6]}
7. cxd5 {[%clk 0:03:02]} 7... exd5 {[%clk 0:02:43]} 8. g3 {[%clk 0:03:02.3]}
8... c5 {[%clk 0:02:40.4]} 9. Bg2 {[%clk 0:03:02.3]} 9... d4 {[%clk 0:02:36.8]}
10. Ne2 {[%clk 0:03:00.8]} 10... dxe3 {[%clk 0:02:27.4]} 11. dxe3 {[%clk
0:03:01.7]} 11... O-O {[%clk 0:02:25.1]} 12. O-O {[%clk 0:03:01.6]} 12... Qc8
{[%clk 0:02:11.4]} 13. Qc2 {[%clk 0:02:58.1]} 13... Nc6 {[%clk 0:02:11.2]} 14.
Qc3 {[%clk 0:02:58.1]} 14... Rd8 {[%clk 0:02:09.8]} 15. Nf4 {[%clk 0:02:58.4]}
15... Ne8 {[%clk 0:02:08.2]} 16. Bh3 {[%clk 0:02:42.7]} 16... Qc7 {[%clk
0:02:05.2]} 17. Nh5 {[%clk 0:02:42.2]} 17... Nf6 {[%clk 0:01:52.6]} 18. Nf4
{[%clk 0:02:18]} 18... Nb4 {[%clk 0:01:52.6]} 19. Bg2 {[%clk 0:02:16.2]} 19...
Nbd5 {[%clk 0:01:43.9]} 20. Nxd5 {[%clk 0:02:15.6]} 20... Bxd5 {[%clk
0:01:44.8]} 21. Rad1 {[%clk 0:02:16]} 21... Bc6 {[%clk 0:01:32.5]} 22. Nh4
{[%clk 0:02:11.2]} 22... Bxg2 {[%clk 0:01:27.2]} 23. Nxg2 {[%clk 0:02:10.9]}
23... Ne8 {[%clk 0:01:25.9]} 24. Nf4 {[%clk 0:02:03.7]} 24... Bf6 {[%clk
0:01:25.7]} 25. Qc2 {[%clk 0:02:04.3]} 25... Bxb2 {[%clk 0:01:25.2]} 26. Qxb2
{[%clk 0:02:05.2]} 26... Nf6 {[%clk 0:01:25.2]} 27. f3 {[%clk 0:02:05.2]} 27...
Rxd1 {[%clk 0:01:21.3]} 28. Rxd1 {[%clk 0:02:05]} 28... Rd8 {[%clk 0:01:22]} 29.
Rd2 {[%clk 0:02:05.1]} 29... Rd7 {[%clk 0:01:18.1]} 30. e4 {[%clk 0:02:04.8]}
30... Qd8 {[%clk 0:01:17.9]} 31. Rxd7 {[%clk 0:02:03.5]} 31... Qxd7 {[%clk
0:01:17.3]} 32. Qe2 {[%clk 0:01:54.2]} 32... Qd4+ {[%clk 0:01:15.5]} 33. Kg2
{[%clk 0:01:54.2]} 33... g5 {[%clk 0:01:11.6]} 34. Nh3 {[%clk 0:01:52.3]} 34...
g4 {[%clk 0:01:03.1]} 35. Nf2 {[%clk 0:01:52.6]} 35... gxf3+ {[%clk 0:01:01.4]}
36. Qxf3 {[%clk 0:01:53.5]} 36... b5 {[%clk 0:00:52.6]} 37. Qf5 {[%clk
0:01:40.2]} 37... c4 {[%clk 0:00:42.8]} 38. bxc4 {[%clk 0:01:26.9]} 38... bxc4
{[%clk 0:00:42.3]} 39. e5 {[%clk 0:01:27.5]} 39... Qd5+ {[%clk 0:00:36.3]} 40.
Kh3 {[%clk 0:01:27.1]} 40... Qd7 {[%clk 0:00:30.3]} 41. g4 {[%clk 0:01:24.1]}
41... Qxf5 {[%clk 0:00:27.6]} 42. gxf5 {[%clk 0:01:25]} 42... Nd7 {[%clk
0:00:21.5]} 43. e6 {[%clk 0:01:21.2]} 43... fxe6 {[%clk 0:00:21.7]} 44. fxe6
{[%clk 0:01:22.1]} 44... Nc5 {[%clk 0:00:20.5]} 45. Kg4 {[%clk 0:01:22.8]} 45...
c3 {[%clk 0:00:18.1]} 0-1

[Event "Early-Titled-Tuesday-Blitz-October-24-2023"]
[Site "Chess.com"]
[Date "2023.10.24"]
[Round "7"]
[White "vishwa_vijeta"]
[Black "giomar27"]
[Result "1-0"]
[WhiteElo "2525"]
[BlackElo "2373"]
[TimeControl "180+1"]
[EndTime "9:14:49 PDT"]
[Termination "vishwa_vijeta won on time"]

1. e4 {[%clk 0:02:58.7]} 1... a6 {[%clk 0:02:55.6]} 2. a3 {[%clk 0:02:55.8]}
2... e5 {[%clk 0:02:40.9]} 3. Nf3 {[%clk 0:02:54.8]} 3... d5 {[%clk 0:02:41.3]}
4. exd5 {[%clk 0:02:54.4]} 4... e4 {[%clk 0:02:41.6]} 5. Qe2 {[%clk 0:02:46.8]}
5... Nf6 {[%clk 0:02:41]} 6. d3 {[%clk 0:02:45.6]} 6... Qxd5 {[%clk 0:02:37.9]}
7. Nc3 {[%clk 0:02:44.9]} 7... Qe6 {[%clk 0:02:36.3]} 8. dxe4 {[%clk 0:02:44.1]}
8... Bc5 {[%clk 0:02:34.6]} 9. Be3 {[%clk 0:02:31.1]} 9... Bxe3 {[%clk
0:02:29.1]} 10. Qxe3 {[%clk 0:02:31.5]} 10... O-O {[%clk 0:02:29.7]} 11. O-O-O
{[%clk 0:02:27.4]} 11... Re8 {[%clk 0:02:30.1]} 12. Qf4 {[%clk 0:02:24.6]} 12...
Nc6 {[%clk 0:02:15.5]} 13. Nd5 {[%clk 0:02:03.1]} 13... Qxe4 {[%clk 0:02:06.5]}
14. Nxf6+ {[%clk 0:01:56.1]} 14... gxf6 {[%clk 0:02:05.4]} 15. Qxf6 {[%clk
0:01:57]} 15... Qg6 {[%clk 0:01:35.9]} 16. Qf4 {[%clk 0:01:55]} 16... Be6 {[%clk
0:01:31]} 17. Bd3 {[%clk 0:01:52.1]} 17... Qg7 {[%clk 0:01:31]} 18. Ng5 {[%clk
0:01:48.4]} 18... h6 {[%clk 0:01:25.1]} 19. Ne4 {[%clk 0:01:43.7]} 19... f5
{[%clk 0:01:17.8]} 20. Ng3 {[%clk 0:01:42.9]} 20... Nd4 {[%clk 0:01:11.9]} 21.
Nh5 {[%clk 0:01:32.1]} 21... Qh8 {[%clk 0:01:06.3]} 22. Qg3+ {[%clk 0:01:29.1]}
22... Kf7 {[%clk 0:00:46.7]} 23. Rhe1 {[%clk 0:01:13.3]} 23... Rac8 {[%clk
0:00:44.9]} 24. Nf4 {[%clk 0:01:09.2]} 24... Rg8 {[%clk 0:00:42.5]} 25. Qe3
{[%clk 0:01:06.4]} 25... Rce8 {[%clk 0:00:17]} 26. Nxe6 {[%clk 0:01:00]} 26...
Nxe6 {[%clk 0:00:17.3]} 27. Bc4 {[%clk 0:01:00.3]} 27... Qf6 {[%clk 0:00:17]}
28. Bxe6+ {[%clk 0:00:58.7]} 28... Qxe6 {[%clk 0:00:12.5]} 29. Qxe6+ {[%clk
0:00:56.7]} 29... Rxe6 {[%clk 0:00:12.3]} 30. Rd7+ {[%clk 0:00:57.3]} 30... Kf6
{[%clk 0:00:12.3]} 31. Rxe6+ {[%clk 0:00:55.9]} 31... Kxe6 {[%clk 0:00:13.2]}
32. Rxc7 {[%clk 0:00:56.8]} 32... Rxg2 {[%clk 0:00:13.2]} 33. Rxb7 {[%clk
0:00:56.4]} 33... Rxh2 {[%clk 0:00:12.5]} 34. Rb6+ {[%clk 0:00:54.9]} 34... Ke5
{[%clk 0:00:12.9]} 35. Rxa6 {[%clk 0:00:55.3]} 35... h5 {[%clk 0:00:13.3]} 36.
Rh6 {[%clk 0:00:54.3]} 36... Kf4 {[%clk 0:00:13.1]} 37. b4 {[%clk 0:00:53.4]}
37... Kg5 {[%clk 0:00:13.1]} 38. Rh8 {[%clk 0:00:53]} 38... Rxf2 {[%clk
0:00:13.2]} 39. b5 {[%clk 0:00:53.4]} 39... Rf4 {[%clk 0:00:10.6]} 40. b6 {[%clk
0:00:53.6]} 40... Rf1+ {[%clk 0:00:04]} 41. Kb2 {[%clk 0:00:53.5]} 1-0